bitfinex-derivatives/quotes_SOLF0:USTF0_20240927
["timestamp","ask_amount","ask_price","bid_price","bid_amount"]
[1727402822287,9.95,155.01,155.0,9.85257757]
[1727402823384,9.95,155.01,155.0,3.2249]
[1727402823579,9.95,155.01,155.0,9.85526718]
[1727402824384,3.23472191,155.06,155.0,6.63036718]
[1727402824581,9.95,155.04,154.99,9.95]
[1727402824888,9.95,155.04,155.0,6.63027196]
[1727402825086,9.95,155.04,155.01,3.2246]
[1727402825893,9.95,155.04,155.02,3.2245]
[1727402826388,3.2241,155.05,155.02,3.2245]
[1727402826589,9.95,155.04,155.02,3.2245]
[1727402829987,9.95,155.04,155.03,3.2243]
[1727402830887,50.98445233,155.11,155.03,9.95]
[1727402831087,9.95,155.09,155.04,27.18411636]
[1727402831293,9.95,155.09,155.05,6.62850629]
[1727402831492,9.95,155.09,155.04,9.95]
[1727402831694,9.95,155.09,155.05,6.62647807]
[1727402831885,9.95,155.09,155.04,9.95]
[1727402832193,13.1732,155.09,155.06,3.2236]
[1727402838492,3.2232,155.09,155.06,3.2236]
[1727402838692,13.1733,155.08,155.05,3.2238]
[1727402838893,9.95,155.06,155.01,9.95]
[1727402839092,9.95,155.06,155.02,6.61688542]
[1727402839290,9.95,155.06,155.04,3.224]
[1727402840196,13.1735,155.07,155.04,3.224]
[1727402841100,13.1733,155.08,155.05,3.2239]
[1727402841597,3.2233,155.08,155.03,9.95]
[1727402841891,9.95,155.12,155.07,9.95]
[1727402842091,3.9979,155.13,155.09,9.95]
[1727402842296,3.9979,155.13,155.1,3.2227]
[1727402842493,1.3336,155.13,155.1,3.2227]
[1727402842797,16.45284413,155.14,155.1,3.2227]
[1727402843697,3.2223,155.13,155.1,3.2227]
[1727402845099,13.1723,155.13,155.1,3.2227]
[1727402846100,9.95,155.12,155.06,6.60356924]
[1727402846296,9.95,155.1,155.05,16.55356924]
[1727402846601,9.95,155.09,155.04,9.95]
[1727402846795,9.95,155.09,155.07,3.2235]
[1727402847195,9.95,155.08,155.02,4.1397]
[1727402847399,9.95,155.08,155.05,3.2238]
[1727402847598,9.95,155.08,155.02,4.1397]
[1727402847800,9.95,155.06,155.02,4.1397]
[1727402848006,9.95,155.06,155.04,3.2239]
[1727402850608,3.2231,155.09,155.03,9.95]
[1727402850798,13.1731,155.09,155.03,9.95]
[1727402851004,9.95,155.08,155.03,9.95]
[1727402851404,13.1733,155.08,155.02,14.0897]
[1727402852313,13.1733,155.08,155.04,3.224]
[1727402853814,9.95,155.07,155.03,3.2243]
[1727402854209,9.95,155.05,155.02,3.2244]
[1727402854409,9.95,155.04,155.0,83.69000908]
[1727402855518,9.95,155.02,154.97,3.9169]
[1727402855718,9.95,155.02,154.97,12.6044]
[1727402855919,9.95,155.02,154.99,3.225]
[1727402856120,9.95,155.02,154.97,12.6044]
[1727402856321,9.95,155.02,154.98,6.60662335]
[1727402856519,9.95,155.02,154.97,12.6044]
[1727402856721,9.95,155.02,155.0,3.2248]
[1727402860317,3.8965,155.05,154.97,12.6044]
[1727402860318,3.8965,155.05,154.99,9.95]
[1727402860518,9.95,155.04,154.99,9.95]
[1727402860718,9.95,155.04,155.01,3.2247]
[1727402861425,13.1741,155.04,155.01,3.2247]
[1727402862625,9.95,155.03,155.01,3.2247]
[1727402867317,9.95,155.03,154.98,9.95]
[1727402868930,9.95,155.03,155.01,3.2247]
[1727402871025,6.4442,155.14,154.99,9.95]
[1727402871223,9.95,155.06,155.01,9.95]
[1727402871424,9.95,155.06,154.99,6.6098706]
[1727402871630,9.95,155.04,155.01,3.2246]
[1727402872133,9.95,155.04,155.02,3.2245]
[1727402876434,13.1741,155.04,155.01,3.2247]
[1727402876629,9.95,155.03,155.01,3.2247]
[1727402876829,9.95,155.02,154.97,11.86600202]
[1727402877027,13.1746,155.02,154.99,3.225]
[1727402878031,9.95,155.0,154.98,3.2253]
[1727402879234,9.95,155.0,154.94,10.57918031]
[1727402879235,9.95,155.0,154.97,3.2254]
[1727402879934,9.95,155.0,154.95,9.95]
[1727402880636,3.17335397,155.05,154.97,9.95]
[1727402880830,4.0118,155.06,154.97,9.95]
[1727402881133,9.95,155.03,155.0,3.2248]
[1727402882835,13.1745,155.03,155.0,3.2248]
[1727402883435,13.1746,155.02,154.99,3.2251]
[1727402885233,7.27725873,155.06,154.95,6.60891576]
[1727402885234,13.1749,155.01,154.95,9.95]
[1727402886241,13.1749,155.01,154.98,3.2252]
[1727402886432,7.27725873,155.06,154.92,7.1630984]
[1727402886433,9.95,154.99,154.95,6.60813623]
[1727402886636,9.95,154.97,154.95,3.226]
[1727402887135,3.226,154.95,154.92,3.9504]
[1727402887337,9.95,154.97,154.93,6.60896011]
[1727402887642,9.95,154.97,154.92,3.9504]
[1727402887836,13.1756,154.97,154.9,10.57433908]
[1727402888038,9.95,154.95,154.91,17.18136305]
[1727402888432,9.95,154.95,154.93,3.2263]
[1727402889039,13.1761,154.95,154.88,83.74313972]
[1727402889237,13.1761,154.95,154.9,6.60677072]
[1727402889545,13.1761,154.95,154.89,87.35]
[1727402889839,13.1761,154.95,154.91,3.2267]
[1727402890544,13.1761,154.95,154.92,3.2266]
[1727402891744,9.95,154.95,154.91,9.95]
[1727402892841,9.95,154.95,154.93,3.2263]
[1727402893341,7.27725873,155.06,154.94,3.226]
[1727402893544,9.95,154.97,154.94,3.226]
[1727402894741,13.1756,154.97,154.94,3.226]
[1727402897943,51.00269002,155.04,154.92,9.95]
[1727402898142,9.95,154.97,154.92,9.95]
[1727402899845,13.1756,154.97,154.94,3.2261]
[1727402900644,13.1752,154.99,154.95,9.95]
[1727402901847,13.1752,154.99,154.96,3.2258]
[1727402902241,9.95,154.99,154.95,9.95]
[1727402902439,9.95,155.02,154.99,3.2251]
[1727402903541,9.95,155.02,155.0,3.2249]
[1727402904148,9.95,155.02,154.99,3.2251]
[1727402904545,9.95,155.02,154.99,3.17858479]
[1727402906950,54.22679002,155.04,154.98,9.95]
[1727402907345,64.17679002,155.04,154.98,9.95]
[1727402908852,9.95,155.03,154.93,4.043]
[1727402909052,9.95,155.03,155.0,3.2248]
[1727402914655,9.95,155.03,155.01,3.2247]
[1727402914854,60.95269002,155.04,154.99,9.95]
[1727402915557,60.95269002,155.04,155.01,3.2246]
[1727402915759,60.95269002,155.04,155.01,9.95]
[1727402916659,51.00269002,155.04,155.02,3.2245]
[1727402917353,51.00269002,155.04,155.03,3.2243]
[1727402917554,9.95,155.06,155.01,9.95]
[1727402917754,9.95,155.08,155.02,9.95]
[1727402918757,3.2235,155.07,155.04,3.2241]
[1727402920056,54.8992646,155.14,155.05,9.95]
[1727402920255,3.29966129,155.12,155.07,9.95]
[1727402920565,13.24966129,155.12,155.07,9.95]
[1727402920761,13.24966129,155.12,155.08,3.2233]
[1727402921062,9.95,155.11,155.06,9.95]
[1727402921565,13.1728,155.11,155.07,3.2234]
[1727402922162,13.1728,155.11,155.08,3.2232]
[1727402925368,13.1728,155.11,155.07,3.2234]
[1727402925964,3.2229,155.1,155.07,3.2234]
[1727402929266,3.2229,155.1,155.06,9.95]
[1727402929267,3.2229,155.1,155.06,13.1736]
[1727402929467,13.1732,155.09,155.06,3.2236]
[1727402930370,13.1733,155.08,155.03,9.95]
[1727402930572,9.95,155.08,155.03,9.95]
[1727402931074,3.2235,155.07,155.04,3.224]
[1727402935777,3.2233,155.08,155.05,9.95]
[1727402936671,3.2233,155.08,155.05,13.1738]
[1727402937677,9.95,155.08,155.04,3.224]
[1727402938876,3.2235,155.07,155.04,3.224]
[1727402946581,9.95,155.09,155.04,9.95]
[1727402946983,13.1732,155.09,155.06,3.2237]
[1727402950185,9.95,155.11,155.07,9.95]
[1727402950690,13.1729,155.11,155.08,3.2233]
[1727402953192,3.2229,155.11,155.08,3.2233]
[1727402953492,64.8492646,155.14,155.09,9.95]
[1727402954790,3.2224,155.13,155.1,3.2228]
[1727402959797,13.1724,155.13,155.09,13.173]
[1727402962192,3.2225,155.12,155.09,13.173]
[1727402962398,3.2225,155.12,155.09,3.223]
[1727402966395,3.2225,155.12,155.09,13.173]
[1727402969101,3.2227,155.11,155.03,3.9618]
[1727402969403,3.2227,155.11,155.06,9.95]
[1727402970097,3.2227,155.11,155.08,3.2232]
[1727402971303,3.2225,155.12,155.08,9.95]
[1727402971602,3.2225,155.12,155.09,9.95]
[1727402972606,3.2225,155.12,155.09,3.223]
[1727402973300,3.2227,155.11,155.08,3.2232]
[1727402974099,3.2231,155.09,155.06,3.2235]
[1727402975006,13.173,155.1,155.07,3.2235]
[1727402976108,3.223,155.1,155.07,3.2235]
[1727402977698,3.223,155.1,155.07,13.1735]
[1727402978405,3.2227,155.11,155.08,3.2233]
[1727402978601,13.1727,155.11,155.08,3.2233]
[1727402980500,3.2229,155.1,155.07,3.2234]
[1727402988915,3.2235,155.07,155.05,10.39656775]
[1727402989215,3.2235,155.07,154.98,6.457]
[1727402989216,9.95,155.06,154.96,86.96206561]
[1727402989418,3.2243,155.04,155.02,6.49869574]
[1727402989715,3.2243,155.04,154.99,9.95]
[1727402990020,3.2243,155.04,155.0,9.72424904]
[1727402990212,3.2243,155.04,155.0,3.2248]
[1727402990917,3.21940019,155.06,155.0,9.95]
[1727402991116,1.2679,155.08,155.0,9.95]
[1727402991318,3.2237,155.06,155.02,3.2244]
[1727402998618,1.2679,155.08,155.04,9.95]
[1727402998821,15.80296909,155.09,155.04,9.95]
[1727402999019,3.2235,155.07,155.04,13.1739]
[1727402999519,3.2238,155.06,155.02,13.1744]
[1727403001124,9.95,155.05,154.95,10.38196869]
[1727403001424,9.95,155.02,154.97,9.95]
[1727403001627,13.1746,155.02,154.99,3.2251]
[1727403003322,13.1746,155.02,154.95,11.71766869]
[1727403003323,9.95,155.01,154.95,11.71766869]
[1727403003525,1.3981,155.08,154.96,6.4855708]
[1727403003526,9.95,154.99,154.96,6.4855708]
[1727403003721,9.95,154.99,154.95,6.48587097]
[1727403004024,9.95,154.99,154.94,12.6226]
[1727403004230,9.95,154.99,154.95,6.4858751]
[1727403004626,9.95,154.99,154.96,3.2256]
[1727403008533,9.95,154.99,154.97,3.2256]
[1727403009033,13.175,155.0,154.97,3.2256]
[1727403009644,9.95,154.99,154.97,3.2256]
[1727403009930,9.95,154.99,154.94,2.6726]
[1727403010136,9.95,154.98,154.93,9.95]
[1727403010637,13.1755,154.98,154.95,3.226]
[1727403010838,9.95,154.96,154.91,7.8740806]
[1727403011036,9.95,154.95,154.91,6.4768806]
[1727403011339,13.176,154.95,154.91,3.2267]
[1727403011536,13.176,154.95,154.9,9.95]
[1727403012839,13.176,154.95,154.92,3.2266]
[1727403013034,3.226,154.95,154.92,3.2266]
[1727403013245,9.95,154.97,154.92,9.95]
[1727403014038,13.1757,154.97,154.93,3.2263]
[1727403020544,3.2258,154.96,154.92,13.1765]
[1727403020844,3.2258,154.96,154.92,3.2265]
[1727403022842,13.1757,154.97,154.93,3.2264]
[1727403027449,9.95,154.95,154.93,3.2264]
[1727403027950,13.1762,154.95,154.9,9.95]
[1727403028153,9.95,154.95,154.9,9.95]
[1727403028451,9.95,154.95,154.92,3.2265]
[1727403028653,9.95,154.95,154.91,9.95]
[1727403028855,3.27704899,154.98,154.92,9.95]
[1727403029049,13.1757,154.97,154.93,3.2263]
[1727403030651,3.2258,154.96,154.93,3.2263]
[1727403033956,9.95,154.97,154.91,9.95]
[1727403034758,3.2258,154.96,154.93,3.2263]
[1727403035460,9.95,154.95,154.93,3.2263]
[1727403037666,3.2262,154.94,154.91,3.2267]
[1727403037964,9.95,154.94,154.89,12.7088]
[1727403038662,9.95,154.94,154.92,3.2265]
[1727403040662,13.1762,154.94,154.92,3.2265]
[1727403041655,13.1762,154.94,154.91,3.2267]
[1727403046165,13.1765,154.93,154.88,9.95]
[1727403046960,13.1765,154.93,154.89,3.2271]
[1727403047263,13.1765,154.93,154.88,9.95]
[1727403047659,13.1765,154.93,154.9,3.2268]
[1727403049567,3.2267,154.92,154.9,3.2268]
[1727403050670,13.1767,154.92,154.9,3.2268]
[1727403052069,9.95,154.92,154.86,6.46625052]
[1727403052265,9.95,154.92,154.79,83.8985]
[1727403052266,2.6174,154.98,154.82,9.95]
[1727403052568,2.6174,154.98,154.79,9.95]
[1727403052569,9.95,154.84,154.79,9.95]
[1727403052769,9.95,154.84,154.81,3.2288]
[1727403053667,13.1783,154.84,154.81,3.2288]
[1727403054270,13.1783,154.84,154.8,3.2291]
[1727403057268,13.1783,154.84,154.81,3.2289]
[1727403058674,9.95,154.83,154.81,3.2289]
[1727403058870,9.95,154.83,154.8,3.229]
[1727403059071,13.1785,154.83,154.8,3.229]
[1727403064879,13.1785,154.83,154.81,3.2289]
[1727403065483,9.95,154.82,154.81,3.2289]
[1727403066583,13.1788,154.82,154.75,3.9186]
[1727403066884,9.95,154.8,154.75,13.8686]
[1727403067080,13.1791,154.8,154.75,13.8686]
[1727403067888,13.1791,154.8,154.78,3.2295]
[1727403069184,9.95,154.79,154.78,3.2295]
[1727403069576,13.1793,154.79,154.73,83.7785951]
[1727403069787,13.1793,154.79,154.73,93.7285951]
[1727403069985,9.95,154.77,154.73,93.7285951]
[1727403070883,9.95,154.77,154.76,3.2298]
[1727403073683,3.8848,154.86,154.78,3.2293]
[1727403073883,3.8848,154.86,154.77,9.95]
[1727403074083,9.95,154.83,154.77,9.95]
[1727403074586,9.95,154.83,154.81,3.2288]
[1727403076090,3.2284,154.84,154.81,3.2288]
[1727403076289,9.95,154.82,154.81,3.2288]
[1727403076593,19.37,154.99,154.81,9.95]
[1727403076792,1.3623,154.92,154.82,9.95]
[1727403076981,9.95,154.88,154.83,9.95]
[1727403077185,9.95,154.87,154.81,1.2869]
[1727403077380,9.95,154.87,154.82,9.95]
[1727403077792,9.95,154.85,154.83,3.2285]
[1727403080589,1.3623,154.94,154.83,9.95]
[1727403080788,1.3623,154.94,154.85,9.95]
[1727403080989,9.95,154.91,154.86,9.95]
[1727403081797,9.95,154.91,154.82,2.7457]
[1727403081798,9.95,154.93,154.88,9.95]
[1727403082295,9.95,154.93,154.9,3.2269]
[1727403082296,13.1764,154.93,154.9,3.2269]
[1727403082688,9.95,154.92,154.87,9.95]
[1727403083287,13.1766,154.92,154.89,3.2271]
[1727403084395,9.95,154.92,154.9,3.227]
[1727403087002,9.95,154.92,154.88,3.2273]
[1727403087194,9.95,154.92,154.87,9.95]
[1727403088101,13.1767,154.92,154.89,3.2271]
[1727403089499,9.95,154.9,154.88,3.2274]
[1727403089701,9.95,154.89,154.88,3.2274]
[1727403091499,9.95,154.89,154.84,9.95]
[1727403092901,9.95,154.89,154.87,3.2275]
[1727403096097,9.95,154.88,154.87,3.2275]
[1727403096299,9.95,154.88,154.86,3.2278]
[1727403099102,13.1775,154.88,154.86,3.2278]
[1727403102504,9.95,154.88,154.86,3.2278]
[1727403112316,9.95,154.87,154.82,2.7457]
[1727403113212,13.1778,154.87,154.84,3.2281]
[1727403114714,13.1778,154.87,154.82,12.6957]
[1727403114918,13.1775,154.88,154.82,12.6957]
[1727403116212,9.95,154.83,154.78,9.95]
[1727403116419,9.95,154.83,154.81,3.2288]
[1727403116918,9.95,154.83,154.78,9.95]
[1727403117410,3.2279,154.86,154.83,3.2285]
[1727403117613,9.95,154.87,154.82,9.95]
[1727403118218,13.1777,154.87,154.82,9.95]
[1727403119323,13.1777,154.87,154.84,3.2281]
[1727403120514,13.1779,154.86,154.84,3.2281]
[1727403120821,13.1779,154.86,154.83,3.2284]
[1727403122119,13.1779,154.86,154.84,3.2282]
[1727403123817,13.1779,154.86,154.83,3.2284]
[1727403124327,9.95,154.84,154.79,9.95]
[1727403124524,9.95,154.84,154.81,3.2287]
[1727403124722,9.95,154.83,154.81,3.2287]
[1727403125421,9.95,154.83,154.82,3.2287]
[1727403132729,9.95,154.83,154.81,3.2288]
[1727403133328,9.95,154.83,154.78,9.95]
[1727403133534,9.95,154.83,154.8,3.2291]
[1727403134035,13.1786,154.83,154.81,3.2289]
[1727403134534,9.95,154.83,154.78,9.95]
[1727403135429,3.2287,154.82,154.8,3.229]
[1727403139135,2.6875,154.88,154.78,9.95]
[1727403139436,9.95,154.84,154.78,9.95]
[1727403140330,13.1784,154.84,154.81,3.2287]
[1727403141735,9.95,154.83,154.81,3.2287]
[1727403145036,13.1785,154.83,154.81,3.2287]
[1727403145438,9.95,154.82,154.8,3.229]
[1727403148238,3.2286,154.83,154.8,3.229]
[1727403148439,9.95,154.82,154.8,3.229]
[1727403151934,9.95,154.82,154.81,3.2289]
[1727403157039,2.6875,154.88,154.79,9.95]
[1727403157247,2.6875,154.88,154.75,4.088]
[1727403157248,9.95,154.85,154.8,9.95]
[1727403157443,9.95,154.85,154.8,13.1901931]
[1727403157647,9.95,154.85,154.83,3.2283]
[1727403165954,13.1781,154.85,154.83,3.2283]
[1727403166255,9.95,154.85,154.82,3.2287]
[1727403166446,9.95,154.84,154.79,9.95]
[1727403166846,13.1785,154.84,154.81,3.2289]
[1727403167353,13.1785,154.84,154.79,9.95]
[1727403169448,3.2285,154.83,154.79,9.95]
[1727403169649,9.95,154.82,154.77,9.95]
[1727403169851,9.95,154.82,154.81,3.2289]
[1727403171657,9.95,154.83,154.82,3.2287]
[1727403172356,9.95,154.83,154.81,3.2288]
[1727403181862,9.95,154.83,154.82,3.2287]
[1727403184163,1.2813,154.89,154.82,9.95]
[1727403184364,9.95,154.89,154.84,9.95]
[1727403184759,9.95,154.87,154.82,13.9735]
[1727403185363,9.95,154.86,154.82,4.0235]
[1727403185565,9.95,154.86,154.8,9.95]
[1727403186667,13.178,154.86,154.83,3.2284]
[1727403192174,3.2282,154.85,154.82,3.2286]
[1727403192474,9.95,154.84,154.82,3.2286]
[1727403193176,3.2282,154.85,154.82,3.2286]
[1727403193376,9.95,154.84,154.82,3.2286]
[1727403195675,9.95,154.83,154.77,4.0235]
[1727403195875,9.95,154.79,154.75,83.81722665]
[1727403196082,9.95,154.79,154.76,3.2298]
[1727403196083,9.95,154.78,154.76,3.2298]
[1727403196377,9.95,154.78,154.75,83.81722665]
[1727403197275,13.1796,154.78,154.75,87.04722665]
[1727403198981,13.1796,154.78,154.76,6.31346678]
[1727403199182,13.1796,154.78,154.77,6.31346678]
[1727403199478,3.2294,154.79,154.77,6.31346678]
[1727403199683,9.95,154.79,154.75,93.76722665]
[1727403199876,9.95,154.79,154.76,6.31247175]
[1727403200075,9.95,154.79,154.77,6.31247175]
[1727403200284,9.95,154.79,154.75,93.76722665]
[1727403200480,9.95,154.79,154.76,6.31158179]
[1727403200887,9.95,154.79,154.77,9.54118179]
[1727403201080,9.95,154.79,154.77,3.2296]
[1727403202584,9.95,154.79,154.78,6.3099368]
[1727403202884,9.95,154.79,154.78,9.5394368]
[1727403204383,9.95,154.79,154.78,3.2295]
[1727403204583,9.95,154.79,154.77,3.2297]
[1727403205085,9.95,154.78,154.76,3.2299]
[1727403205286,9.95,154.77,154.76,3.2299]
[1727403205485,9.95,154.77,154.76,9.53849223]
[1727403205684,9.95,154.77,154.76,6.30859223]
[1727403206185,9.95,154.77,154.74,3.2302]
[1727403206186,13.1797,154.77,154.74,3.2302]
[1727403206487,9.95,154.75,154.74,3.2302]
[1727403206688,9.95,154.75,154.74,9.53831735]
[1727403207584,9.95,154.75,154.74,3.2302]
[1727403207787,9.95,154.75,154.74,9.53692991]
[1727403208189,9.95,154.75,154.74,3.2302]
[1727403208485,9.95,154.75,154.74,9.54787395]
[1727403208988,13.1797,154.77,154.75,3.2301]
[1727403209394,4.1426,154.82,154.74,9.95]
[1727403209590,4.1426,154.82,154.75,6.31430776]
[1727403209885,4.1426,154.82,154.76,6.31430776]
[1727403209886,9.95,154.81,154.76,6.31430776]
[1727403210090,9.95,154.81,154.75,9.95]
[1727403210284,9.95,154.81,154.76,6.31375764]
[1727403210490,13.1791,154.81,154.75,9.95]
[1727403210791,13.1791,154.81,154.77,3.2296]
[1727403211183,13.1791,154.81,154.75,9.95]
[1727403211384,9.95,154.79,154.76,6.31319918]
[1727403211591,4.1426,154.82,154.74,9.95]
[1727403211592,9.95,154.78,154.74,9.95]
[1727403211791,9.95,154.78,154.75,6.31317434]
[1727403212085,9.95,154.78,154.76,9.54297434]
[1727403212286,9.95,154.78,154.76,3.2298]
[1727403214193,9.95,154.77,154.75,3.2301]
[1727403218095,13.1798,154.77,154.75,3.2301]
[1727403224305,13.1798,154.77,154.74,3.2303]
[1727403224504,9.95,154.76,154.74,3.2303]
[1727403226705,9.95,154.76,154.75,3.2302]
[1727403229208,9.95,154.76,154.74,3.2303]
[1727403230106,9.95,154.75,154.73,3.2305]
[1727403231712,9.95,154.74,154.72,6.30492204]
[1727403231912,4.1426,154.82,154.69,6.30492204]
[1727403231913,9.95,154.73,154.69,6.30492204]
[1727403232109,9.95,154.73,154.7,6.30492204]
[1727403232308,9.95,154.73,154.71,6.30492204]
[1727403232613,9.95,154.73,154.69,6.30492204]
[1727403232813,9.95,154.73,154.7,6.30492204]
[1727403233013,9.95,154.73,154.72,3.2308]
[1727403233514,9.95,154.74,154.72,3.2308]
[1727403233715,9.95,154.74,154.73,3.2306]
[1727403235311,4.1426,154.82,154.74,3.2302]
[1727403235513,9.95,154.75,154.74,3.2302]
[1727403237817,9.95,154.75,154.73,3.2305]
[1727403238619,13.1802,154.75,154.73,3.2305]
[1727403241723,3.2298,154.77,154.7,6.30301012]
[1727403241918,9.95,154.76,154.75,3.2301]
[1727403242224,9.95,154.76,154.71,16.25301012]
[1727403242419,9.95,154.76,154.74,3.2302]
[1727403243122,9.95,154.76,154.75,3.2302]
[1727403244120,9.95,154.76,154.74,3.2303]
[1727403245228,13.18,154.76,154.74,3.2303]
[1727403247928,9.95,154.75,154.74,3.2303]
[1727403248931,13.1803,154.75,154.72,3.2307]
[1727403249132,9.95,154.74,154.72,3.2307]
[1727403250933,13.1804,154.74,154.72,3.2307]
[1727403254227,13.1804,154.74,154.7,9.53406803]
[1727403254228,9.95,154.74,154.7,9.53406803]
[1727403254433,9.95,154.71,154.7,3.2311]
[1727403255332,9.95,154.71,154.7,9.53562994]
[1727403255531,9.95,154.71,154.7,3.2311]
[1727403255734,9.95,154.71,154.7,9.53562994]
[1727403255934,9.95,154.71,154.7,3.2311]
[1727403256137,9.95,154.71,154.69,3.2313]
[1727403256428,9.95,154.71,154.7,6.30712847]
[1727403259634,9.95,154.71,154.7,6.30990939]
[1727403259840,9.95,154.71,154.69,3.2313]
[1727403263344,9.95,154.71,154.7,6.31630125]
[1727403263536,9.95,154.71,154.7,6.31585899]
[1727403265646,13.181,154.71,154.7,6.31585899]
[1727403268645,13.181,154.71,154.68,3.2315]
[1727403268847,9.95,154.7,154.69,6.31752284]
[1727403270344,9.95,154.7,154.68,3.2315]
[1727403270650,9.95,154.7,154.69,6.31769195]
[1727403273752,9.95,154.7,154.69,9.54909195]
[1727403273955,9.95,154.71,154.69,6.31769195]
[1727403274150,9.95,154.71,154.7,6.31769195]
[1727403274849,9.95,154.71,154.7,9.54889195]
[1727403276955,13.181,154.71,154.7,6.31769195]
[1727403277157,13.181,154.71,154.69,3.2314]
[1727403277459,3.231,154.71,154.7,6.31796879]
[1727403277653,3.231,154.71,154.68,3.2315]
[1727403277850,9.95,154.7,154.68,3.2315]
[1727403278053,9.95,154.7,154.69,6.31769883]
[1727403280862,9.95,154.7,154.68,3.2315]
[1727403281062,9.95,154.7,154.69,6.31838688]
[1727403285164,9.95,154.7,154.68,3.2315]
[1727403298275,3.2309,154.72,154.66,9.95]
[1727403298474,13.1809,154.72,154.67,6.31898284]
[1727403298776,13.1809,154.72,154.66,9.95]
[1727403298979,13.1809,154.72,154.67,6.31866571]
[1727403299174,13.1809,154.72,154.68,6.31866571]
[1727403299376,13.1809,154.72,154.69,6.31866571]
[1727403299576,13.1809,154.72,154.7,6.31866571]
[1727403299779,13.1809,154.72,154.66,9.95]
[1727403300077,13.1809,154.72,154.67,6.31904783]
[1727403300377,13.1809,154.72,154.69,3.2313]
[1727403300572,13.1809,154.72,154.7,6.31904783]
[1727403300777,13.1809,154.72,154.69,3.2313]
[1727403300778,13.1809,154.72,154.66,9.95]
[1727403300982,9.95,154.7,154.67,6.31939865]
[1727403301184,3.9445,154.76,154.68,6.31939865]
[1727403301379,9.95,154.69,154.64,3.9988]
[1727403301678,9.95,154.67,154.66,3.232]
[1727403301985,9.95,154.67,154.66,9.55214464]
[1727403303083,7.2444153,154.76,154.68,3.2316]
[1727403303384,9.95,154.7,154.64,13.9488]
[1727403303586,9.95,154.7,154.68,3.2315]
[1727403305285,3.231,154.71,154.68,3.2315]
[1727403305481,9.95,154.69,154.68,3.2315]
[1727403305681,9.95,154.69,154.68,9.55088528]
[1727403306983,9.95,154.69,154.68,3.2315]
[1727403307384,9.95,154.69,154.68,9.55098644]
[1727403308986,13.1814,154.69,154.68,6.31948644]
[1727403310089,13.1814,154.69,154.67,3.2317]
[1727403310292,9.95,154.68,154.67,3.2317]
[1727403310790,9.95,154.68,154.67,9.55156871]
[1727403310989,9.95,154.7,154.67,6.31986871]
[1727403311891,9.95,154.7,154.69,3.2314]
[1727403312887,9.61747673,154.84,154.69,9.95]
[1727403313092,9.95,154.78,154.73,9.95]
[1727403313492,9.95,154.76,154.71,13.15692641]
[1727403313689,9.95,154.76,154.71,9.95]
[1727403314088,9.95,154.76,154.73,3.2304]